bitfinex-derivatives/quotes_SOLF0:USTF0_20240910
["timestamp","ask_amount","ask_price","bid_price","bid_amount"]
[1725968394598,14.1911,134.72,134.7,3.7117]
[1725968395699,14.1911,134.72,134.69,3.7119]
[1725968397502,14.1911,134.72,134.7,3.7117]
[1725968398203,14.1911,134.72,134.69,3.7119]
[1725968400496,5.0911,134.72,134.7,3.7117]
[1725968400698,1.3798,134.72,134.68,9.1]
[1725968401096,1.3798,134.72,134.66,3.71407341]
[1725968401097,9.1,134.7,134.66,3.71407341]
[1725968401299,3.7123,134.68,134.63,9.1]
[1725968401700,3.7123,134.68,134.65,3.7131]
[1725968404305,12.8123,134.68,134.65,3.7131]
[1725968405798,3.7122,134.69,134.64,9.1]
[1725968406103,9.1,134.7,134.64,9.1]
[1725968406702,12.8119,134.7,134.67,3.7124]
[1725968408018,12.8119,134.7,134.68,3.7122]
[1725968408205,3.7119,134.7,134.68,3.7122]
[1725968408407,1.3798,134.72,134.69,3.7118]
[1725968408606,1.3798,134.72,134.68,9.1]
[1725968409104,1.3798,134.72,134.7,3.7116]
[1725968409305,9.1,134.74,134.69,9.1]
[1725968410114,12.8108,134.74,134.71,3.7113]
[1725968410309,3.7108,134.74,134.71,3.7113]
[1725968410509,1.3833,134.75,134.71,9.1]
[1725968411518,5.0938,134.75,134.72,3.711]
[1725968411717,1.3833,134.75,134.72,3.711]
[1725968411921,3.7111,134.73,134.69,3.7117]
[1725968412610,3.7111,134.73,134.7,3.7116]
[1725968413123,3.7111,134.73,134.71,3.7114]
[1725968413923,12.8107,134.74,134.71,3.7114]
[1725968414124,3.7107,134.74,134.71,3.7114]
[1725968415420,5.0938,134.75,134.71,9.1]
[1725968415621,1.3833,134.75,134.71,9.1]
[1725968415818,1.3833,134.75,134.72,9.1]
[1725968416023,1.3833,134.75,134.73,3.7107]
[1725968416223,1.3833,134.75,134.72,9.1]
[1725968416923,1.3833,134.75,134.74,3.7106]
[1725968417225,3.7099,134.77,134.73,9.1]
[1725968417431,3.7097,134.78,134.75,3.7101]
[1725968417723,10.4792,134.8,134.74,9.1]
[1725968417914,3.7095,134.79,134.76,3.7099]
[1725968418115,10.5001,134.8,134.76,3.7099]
[1725968418727,9.1,134.79,134.75,3.7103]
[1725968419731,3.7096,134.78,134.75,3.7103]
[1725968420628,3.7093,134.79,134.74,9.1]
[1725968421334,3.7093,134.79,134.76,3.7099]
[1725968421725,3.7093,134.79,134.77,3.7098]
[1725968421922,14.2092,134.8,134.77,3.7098]
[1725968422129,5.1092,134.8,134.78,3.7095]
[1725968422831,1.4001,134.8,134.78,3.7095]
[1725968424621,5.1091,134.8,134.78,3.7095]
[1725968424824,5.1091,134.8,134.77,3.7097]
[1725968427325,5.1091,134.8,134.77,12.8097]
[1725968428529,1.4001,134.8,134.78,3.7095]
[1725968428729,3.7088,134.81,134.78,9.1]
[1725968429328,3.7088,134.81,134.78,12.8093]
[1725968430240,156.16512583,134.82,134.78,9.1]
[1725968430538,156.16512583,134.82,134.79,9.1]
[1725968430539,152.45662583,134.82,134.79,9.1]
[1725968430931,156.16522583,134.82,134.79,12.8091]
[1725968432038,152.45662583,134.82,134.8,3.7089]
[1725968432234,152.45662583,134.82,134.79,9.1]
[1725968432436,10.3779,134.86,134.81,9.1]
[1725968432635,644.85006258,134.88,134.82,9.1]
[1725968432636,3.7078,134.85,134.82,9.1]
[1725968433334,225.0,134.93,134.84,9.1]
[1725968433534,11.7665,134.91,134.85,9.1]
[1725968433734,11.7665,134.91,134.83,3.64908593]
[1725968433735,11.7665,134.91,134.84,9.1]
[1725968433937,15.44489436,134.91,134.84,12.83404329]
[1725968434333,11.7665,134.91,134.84,12.83404329]
[1725968434542,3.7064,134.9,134.86,3.7071]
[1725968434839,11.7665,134.91,134.85,9.1]
[1725968435031,6.3725,134.91,134.87,12.8068]
[1725968435227,1.3305,134.92,134.88,9.1]
[1725968435826,1.3305,134.92,134.89,9.1]
[1725968436338,2.6665,134.96,134.89,9.1]
[1725968436529,2.6665,134.96,134.9,9.1]
[1725968436530,13.0937,134.96,134.9,9.1]
[1725968436726,3.7051,134.95,134.91,3.7058]
[1725968437136,13.0937,134.96,134.91,3.7058]
[1725968437544,3.7053,134.94,134.9,12.8061]
[1725968438735,3.7054,134.93,134.9,12.8061]
[1725968440939,3.7052,134.94,134.91,3.7059]
[1725968441341,3.9937,134.96,134.9,9.1]
[1725968441533,3.9937,134.96,134.92,9.1]
[1725968441739,1.3272,134.96,134.92,9.1]
[1725968442044,5.0319,134.96,134.94,3.7051]
[1725968442246,10.4272,134.96,134.91,9.1]
[1725968442943,3.705,134.95,134.92,3.7055]
[1725968443148,1.3272,134.96,134.91,9.1]
[1725968443540,5.0318,134.96,134.93,3.7052]
[1725968443838,1.3272,134.96,134.93,9.1]
[1725968444434,3.705,134.95,134.92,3.7055]
[1725968445643,3.705,134.95,134.92,12.8055]
[1725968448847,1.3272,134.96,134.91,9.1]
[1725968449153,10.4272,134.96,134.91,9.1]
[1725968449952,3.7053,134.94,134.91,12.8059]
[1725968450747,3.7054,134.93,134.91,12.8059]
[1725968451845,3.7053,134.94,134.91,12.8059]
[1725968452445,3.7057,134.92,134.88,2.7397]
[1725968452647,3.7057,134.92,134.9,9.1]
[1725968453943,3.7057,134.92,134.9,12.8062]
[1725968454346,3.7055,134.93,134.9,12.8062]
[1725968454738,10.4272,134.96,134.9,12.8062]
[1725968454942,3.7056,134.93,134.9,12.8062]
[1725968455551,3.7059,134.91,134.89,3.7064]
[1725968455752,3.7059,134.91,134.89,12.8064]
[1725968456151,3.7058,134.92,134.89,12.8064]
[1725968458658,3.7058,134.92,134.9,9.1]
[1725968459157,9.1,134.95,134.89,9.1]
[1725968459158,3.7061,134.91,134.89,9.1]
[1725968459358,9.1,134.95,134.89,9.1]
[1725968459552,9.1,134.95,134.88,2.7397]
[1725968459553,9.1,134.95,134.9,9.1]
[1725968459752,3.7058,134.92,134.9,9.1]
[1725968460452,3.7055,134.93,134.9,12.8061]
[1725968461053,3.7057,134.92,134.9,12.8061]
[1725968461254,9.1,134.95,134.9,9.1]
[1725968461953,3.7059,134.91,134.9,9.1]
[1725968462552,3.7062,134.9,134.88,2.7397]
[1725968462857,3.7062,134.9,134.67,41.10544541]
[1725968462858,9.1,134.92,134.87,9.1]
[1725968463054,9.1,134.93,134.88,9.1]
[1725968463249,3.7063,134.9,134.88,9.1]
[1725968465561,9.1,134.95,134.89,9.1]
[1725968466662,3.706,134.91,134.89,9.1]
[1725968468751,3.7062,134.9,134.89,9.1]
[1725968469151,9.1,134.95,134.89,9.1]
[1725968469460,3.7061,134.91,134.89,9.1]
[1725968472064,3.7062,134.9,134.89,9.1]
[1725968473663,3.7065,134.89,134.88,9.1]
[1725968476865,3.7064,134.9,134.88,9.1]
[1725968480570,3.7065,134.89,134.88,9.1]
[1725968485266,1.3272,134.96,134.88,9.1]
[1725968485467,1.3272,134.96,134.91,9.1]
[1725968485666,9.1,134.98,134.93,9.1]
[1725968485874,3.7044,134.97,134.94,9.1]
[1725968486176,1.2769,134.98,134.94,9.1]
[1725968486366,3.62682635,135.05,134.96,9.1]
[1725968486367,9.1,135.02,134.96,9.1]
[1725968486572,9.1,135.02,134.97,9.1]
[1725968487169,3.7039,134.99,134.97,9.1]
[1725968488677,9.1,135.02,134.97,9.1]
[1725968489078,9.1,135.02,134.96,9.1]
[1725968489573,161.35709239,135.0,134.94,9.1]
[1725968489876,3.7044,134.97,134.92,12.8055]
[1725968490178,9.1,134.97,134.92,9.1]
[1725968490377,9.1,134.97,134.91,9.1]
[1725968491080,3.705,134.95,134.91,12.8057]
[1725968491381,9.1,134.97,134.92,9.1]
[1725968491579,9.1,134.97,134.93,3.7052]
[1725968491973,3.7047,134.96,134.92,12.8055]
[1725968492174,9.1,134.97,134.92,12.8055]
[1725968493277,3.705,134.95,134.92,12.8055]
[1725968493782,3.7047,134.96,134.93,3.7052]
[1725968494077,2.6049,134.98,134.94,9.1]
[1725968494273,3.7042,134.98,134.95,3.7047]
[1725968494880,3.7044,134.97,134.95,3.7047]
[1725968495276,3.7044,134.97,134.95,12.8047]
[1725968496180,1.2905,134.99,134.96,9.1]
[1725968496479,4.9944,134.99,134.97,9.1]
[1725968499080,3.7034,135.01,134.97,9.1]
[1725968499278,3.7034,135.01,134.92,5.08012564]
[1725968499279,3.7034,135.01,134.99,9.1]
[1725968499482,9.1,135.05,134.92,5.08012564]
[1725968499780,3.7039,134.99,134.96,9.1]
[1725968499978,9.1,135.02,134.96,9.1]
[1725968500376,3.7037,135.0,134.97,3.7042]
[1725968501283,9.1,135.03,134.97,9.1]
[1725968501785,3.7035,135.01,134.98,3.7039]
[1725968502276,3.7035,135.0,134.97,12.8042]
[1725968502477,4.0227,135.06,134.96,9.1]
[1725968502478,9.1,135.02,134.96,9.1]
[1725968502782,3.7039,134.99,134.96,12.8044]
[1725968502980,1.2793,135.01,134.96,12.8044]
[1725968503174,1.2793,135.01,134.96,9.1]
[1725968503375,3.7041,134.98,134.95,9.1]
[1725968503983,3.7041,134.98,134.96,3.7046]
[1725968505984,3.7037,135.0,134.97,3.7043]
[1725968506180,3.7037,135.0,134.92,5.08012564]
[1725968506181,10.3793,135.01,134.96,9.1]
[1725968506786,10.3793,135.01,134.96,12.8044]
[1725968507181,3.7041,134.98,134.96,12.8044]
[1725968509690,3.7041,134.98,134.95,12.8048]
[1725968510190,10.3793,135.01,134.95,9.1]
[1725968510892,3.7039,134.99,134.96,3.7044]
[1725968512293,3.7039,134.99,134.92,5.08012564]
[1725968512294,3.7039,134.99,134.97,12.8042]
[1725968512488,1.2793,135.01,134.98,9.1]
[1725968512982,4.9825,135.01,134.99,9.1]
[1725968513486,4.9825,135.01,134.99,12.8036]
[1725968513885,272.0,135.12,135.0,9.1]
[1725968514081,7.3999,135.14,135.02,9.1]
[1725968514082,10.3837,135.08,135.02,9.1]
[1725968514890,3.702,135.06,135.02,9.1]
[1725968515295,9.1,135.05,134.94,5.79901643]
[1725968515497,1.2837,135.08,135.0,9.1]
[1725968515687,9.1,135.07,135.01,9.1]
[1725968515891,1.2837,135.08,135.02,9.1]
[1725968516094,10.3837,135.08,135.02,9.1]
[1725968516494,10.3837,135.08,135.04,3.7022]
[1725968516990,1.2837,135.08,135.05,9.1]
[1725968518600,4.9852,135.08,135.05,12.802]
[1725968518990,1.2837,135.08,135.05,9.1]
[1725968519397,1.2837,135.08,135.06,3.7018]
[1725968520397,3.7012,135.09,135.06,3.7018]
[1725968520696,600.7527881,135.11,135.06,3.7018]
[1725968520697,3.7015,135.08,135.06,9.1]
[1725968520897,9.1,135.1,135.04,9.1]
[1725968521094,9.1,135.07,135.01,2.7572]
[1725968521300,3.7022,135.05,135.02,12.8029]
[1725968521600,591.6527881,135.11,135.02,12.8029]
[1725968521802,3.7018,135.07,135.03,3.7025]
[1725968522002,9.1,135.08,135.01,2.7572]
[1725968522197,10.4506,135.07,135.01,9.1]
[1725968522498,3.7026,135.04,135.01,9.1]
[1725968522895,9.1,135.06,135.01,9.1]
[1725968523302,9.1,135.06,135.01,12.8031]
[1725968523603,1.3506,135.07,135.03,9.1]
[1725968523807,3.702,135.06,135.03,9.1]
[1725968524006,3.702,135.06,135.03,12.8025]
[1725968524395,3.7021,135.05,135.03,9.1]
[1725968525002,3.7024,135.04,135.01,9.1]
[1725968525306,9.1,135.06,135.01,9.1]
[1725968526103,3.7023,135.05,135.01,12.803]
[1725968526406,9.1,135.06,135.01,12.803]
[1725968527406,3.7025,135.04,135.01,12.803]
[1725968528107,3.7028,135.03,135.01,9.1]
[1725968528310,9.1,135.06,135.01,9.1]
[1725968528713,3.7029,135.02,135.0,9.1]
[1725968528913,9.1,135.06,135.0,9.1]
[1725968529110,10.21992279,135.05,135.0,9.1]
[1725968529307,3.703,135.02,135.0,9.1]
[1725968529504,9.1,135.05,135.0,9.1]
[1725968529704,9.1,135.05,134.96,3.7044]
[1725968529705,3.7039,134.99,134.96,3.7044]
[1725968529904,9.1,135.02,134.94,2.7068]
[1725968530110,1.3007,135.01,134.96,9.1]
[1725968530405,10.4007,135.01,134.96,9.1]
[1725968530708,3.704,134.99,134.96,9.1]
[1725968531109,1.3007,135.01,134.97,9.1]
[1725968531416,5.0039,135.01,134.98,12.8039]
[1725968531709,1.3007,135.01,134.98,9.1]
[1725968532012,1.3007,135.01,134.94,2.7068]
[1725968532013,3.703,135.02,135.0,9.1]
[1725968532206,1.3232,135.05,135.0,9.1]
[1725968532406,3.7028,135.03,135.0,12.8033]
[1725968532613,1.3232,135.05,135.0,9.1]
[1725968533612,1.3232,135.05,135.01,9.1]
[1725968534006,1.3232,135.05,135.02,12.8029]
[1725968534007,5.0254,135.05,135.02,12.8029]
[1725968534203,1.3232,135.05,135.02,12.8029]
[1725968534916,5.0255,135.05,135.02,12.8029]
[1725968535115,3.7023,135.05,135.02,12.8029]
[1725968535819,3.702,135.06,135.03,3.7026]
[1725968536111,1.2768,135.09,135.01,14.22]
[1725968536310,3.7023,135.05,135.02,3.7028]
[1725968536907,1.2768,135.09,135.02,3.7028]
[1725968537105,1.11971885,135.08,135.02,3.7028]
[1725968537706,1.11971885,135.08,135.01,14.22]
[1725968538112,1.2768,135.09,135.01,14.22]
[1725968538312,3.7025,135.04,135.01,17.9231]
[1725968539617,3.7027,135.03,135.01,17.9231]
[1725968540222,3.7025,135.04,135.01,17.9231]
[1725968541017,3.7028,135.03,135.01,14.22]
[1725968546718,3.7029,135.02,135.01,14.22]
[1725968548124,3.7032,135.01,134.99,14.22]
[1725968550022,3.7032,135.01,134.99,17.9237]
[1725968550422,3.7032,135.01,134.99,3.7037]
[1725968550726,14.22,135.07,134.97,14.22]
[1725968550934,1.11999052,135.06,134.97,14.22]
[1725968551131,3.7036,135.0,134.97,14.22]
[1725968551629,3.7036,135.0,134.98,3.7039]
[1725968553839,3.7033,135.01,134.98,3.7039]
[1725968554042,14.22,135.07,134.97,14.22]
[1725968554239,1.11995887,135.06,134.99,14.22]
[1725968554435,3.7028,135.03,134.99,14.22]
[1725968554745,15.4968,135.09,134.99,14.22]
[1725968555036,1.11994037,135.08,134.99,14.22]
[1725968555435,1.11994037,135.08,135.01,3.703]
[1725968556033,3.7027,135.03,135.01,3.703]
[1725968556239,3.7027,135.03,135.02,9.1]
[1725968557830,3.7031,135.02,135.01,9.1]
[1725968558238,9.1,135.08,135.01,9.1]
[1725968558542,3.7028,135.03,135.01,9.1]
[1725968559245,3.7028,135.03,135.01,12.8032]
[1725968561041,3.7028,135.03,135.01,9.1]
[1725968561738,3.7028,135.03,135.01,12.8032]
[1725968564544,3.7025,135.04,135.02,3.7029]
[1725968564741,9.1,135.08,135.01,9.1]
[1725968565140,3.7028,135.03,135.01,12.803]
[1725968570448,3.7029,135.02,135.01,9.1]
[1725968572144,3.7028,135.03,135.01,9.1]
[1725968572350,3.7028,135.03,135.01,12.8031]
[1725968572550,9.1,135.08,135.01,12.8031]
[1725968572753,9.1,135.08,135.03,9.1]
[1725968573258,3.7025,135.04,135.03,9.1]
[1725968580063,3.7025,135.04,134.94,2.5987]
[1725968580064,9.1,135.07,135.0,3.7034]
[1725968580263,9.1,135.07,135.0,12.8034]
[1725968580467,3.7031,135.02,135.0,9.1]
[1725968580668,12.75812555,135.04,134.94,2.5987]
[1725968580870,1.3608,135.03,134.98,9.1]
[1725968581059,3.7034,135.01,134.98,9.1]
[1725968581263,3.7034,135.01,134.99,9.1]
[1725968585167,3.7035,135.0,134.99,9.1]
[1725968588271,3.7033,135.01,134.99,9.1]
[1725968589281,3.7035,135.0,134.99,9.1]
[1725968592897,1.3608,135.03,134.99,9.1]
[1725968592898,3.7033,135.01,134.99,9.1]
[1725968593987,3.7035,135.0,134.99,9.1]
[1725968597693,3.7035,135.0,134.98,3.7039]
[1725968597891,3.7035,135.0,134.98,9.1]
[1725968598502,3.7035,135.0,134.98,12.804]
[1725968599496,3.7039,134.99,134.96,3.7043]
[1725968599688,3.7039,134.99,134.98,9.1]
[1725968603697,3.7036,135.0,134.98,12.804]
[1725968603898,3.7036,135.0,134.99,9.1]
[1725968605797,3.703,135.02,134.99,9.1]
[1725968605992,3.703,135.02,134.95,1.291]
[1725968605993,3.703,135.02,135.01,9.1]
[1725968607513,5.0636,135.03,135.01,9.1]
[1725968607806,5.0636,135.03,135.02,9.1]
[1725968608310,3.7025,135.04,135.02,9.1]
[1725968610900,3.7026,135.03,135.02,9.1]
[1725968611710,3.7026,135.03,135.01,3.7031]
[1725968612403,3.7025,135.04,135.02,9.1]
[1725968612802,3.7025,135.04,135.02,12.8029]
[1725968613104,3.7025,135.04,135.02,9.1]
[1725968613308,3.7026,135.03,135.01,3.7031]
[1725968614198,3.7031,135.02,135.0,3.7035]
[1725968614401,3.7031,135.02,134.99,9.1]
[1725968614604,1.3945,135.04,134.99,9.1]
[1725968614807,3.7034,135.01,134.99,12.8036]
[1725968616006,3.7031,135.02,134.99,12.8036]
[1725968618100,3.7033,135.01,134.99,12.8036]
[1725968621604,3.7031,135.02,134.99,12.8036]
[1725968621810,3.7031,135.02,135.0,3.7035]
[1725968624113,3.7028,135.03,135.01,12.8032]
[1725968624416,3.7028,135.03,135.01,9.1]
[1725968624615,1.3945,135.04,135.01,9.1]
[1725968625502,3.7029,135.02,135.01,9.1]
[1725968628418,3.7027,135.03,135.01,12.8032]
[1725968628914,3.7027,135.03,135.01,9.1]
[1725968629516,3.7027,135.03,135.01,12.803]
[1725968629706,1.3945,135.04,135.01,9.1]
[1725968629908,1.3945,135.04,135.02,9.1]
[1725968629909,3.7024,135.04,135.02,9.1]
[1725968630512,3.7024,135.04,135.02,12.8029]
[1725968630910,3.7024,135.04,135.02,9.1]
[1725968631516,3.7026,135.03,135.02,9.1]
[1725968631905,3.7026,135.03,135.01,12.8031]
[1725968635619,3.7025,135.04,135.01,12.8031]
[1725968636312,3.7025,135.04,135.02,12.8029]
[1725968636710,3.702,135.06,135.03,9.1]
[1725968637115,3.702,135.06,135.03,12.8024]
[1725968637318,3.702,135.06,135.03,9.1]
[1725968639311,9.1,135.08,135.02,9.1]
[1725968640020,3.7024,135.04,135.02,12.8028]
[1725968640516,3.7026,135.03,135.01,9.1]
[1725968640908,3.7026,135.03,135.01,12.803]
[1725968641714,3.7025,135.04,135.01,12.803]
[1725968642016,3.7025,135.04,135.02,3.7029]
[1725968642219,9.1,135.08,135.02,3.7029]
[1725968642414,9.1,135.05,135.0,3.7033]
[1725968643318,9.1,135.05,134.99,12.8036]
[1725968643922,3.7031,135.02,134.99,12.8036]
[1725968644320,3.7034,135.01,134.99,9.1]
[1725968644623,3.7034,135.01,134.98,3.7039]
[1725968644820,3.7034,135.01,134.98,12.8039]
[1725968646917,3.7034,135.01,134.99,3.7037]
[1725968649225,3.7034,135.01,134.98,12.8039]
[1725968650127,3.7034,135.01,134.99,3.7037]
[1725968653123,3.703,135.02,134.98,9.1]
[1725968653328,3.703,135.02,134.95,2.6732]
[1725968653329,3.703,135.02,135.0,9.1]
[1725968653525,1.3558,135.04,135.0,9.1]
[1725968654128,3.703,135.02,135.0,12.8033]
[1725968654828,3.7027,135.03,135.01,9.1]
[1725968655129,3.7029,135.03,135.01,9.1]
[1725968658619,3.7029,135.03,135.01,12.803]
[1725968658822,5.0583,135.04,135.01,9.1]
[1725968659331,9.1,135.08,135.02,12.8029]
[1725968659526,3.7022,135.05,135.02,12.8029]
[1725968660030,3.7021,135.05,135.03,3.7026]
[1725968660226,3.7021,135.05,135.02,9.1]
[1725968660827,3.7021,135.05,135.02,12.8027]
[1725968667532,3.7024,135.04,135.02,12.8027]
[1725968670333,9.1,135.06,135.0,9.1]
[1725968670847,1.3799,135.05,135.0,9.1]
[1725968672134,1.3799,135.05,135.0,12.8034]
[1725968672135,3.7031,135.02,135.0,12.8034]
[1725968673237,3.7031,135.02,135.0,9.1]
[1725968673536,3.7032,135.01,135.0,9.1]
[1725968678437,3.7035,135.0,134.98,12.8039]
[1725968681448,3.7035,135.0,134.97,3.7042]
[1725968681742,3.7038,134.99,134.97,12.8042]
[1725968682042,9.1,135.03,134.97,12.8042]
[1725968682438,9.1,135.03,134.95,2.6732]
[1725968682439,3.7036,135.0,134.98,12.8039]
[1725968684935,3.7041,134.98,134.96,3.7044]
[1725968685142,9.1,135.03,134.96,9.1]
[1725968685836,3.7037,135.0,134.97,3.7041]
[1725968686244,3.7037,135.0,134.98,12.804]
[1725968686643,3.7033,135.01,134.98,12.804]
[1725968687148,3.7031,135.02,134.99,9.1]
[1725968687451,3.7031,135.02,134.99,12.8036]
[1725968687747,5.0821,135.05,135.01,9.1]
[1725968687948,5.0821,135.05,135.02,3.7028]
[1725968697357,1.3799,135.05,135.01,12.8031]
[1725968698153,3.7025,135.04,135.01,12.8031]
[1725968700460,3.7024,135.04,135.01,12.8031]
[1725968701263,3.7024,135.04,135.01,3.7031]
[1725968701660,5.0821,135.05,135.02,9.1]
[1725968701854,1.3799,135.05,135.02,9.1]
[1725968703061,3.7025,135.04,135.02,12.8029]
[1725968704366,3.7022,135.05,135.02,9.1]
[1725968704670,152.16031483,135.07,135.03,9.1]
[1725968704868,152.16031483,135.07,135.05,9.1]
[1725968705167,152.16031483,135.07,135.04,9.1]
[1725968705968,155.86201483,135.07,135.04,12.8021]
[1725968706971,155.86201483,135.07,135.04,3.7021]
[1725968707172,155.86201483,135.07,135.04,12.8021]
[1725968707568,152.16031483,135.07,135.05,3.7021]
[1725968707765,152.16031483,135.07,135.05,12.8021]
[1725968707960,152.16031483,135.07,135.05,9.1]
[1725968708165,152.16031483,135.07,135.06,12.8018]
[1725968710871,152.16031483,135.07,135.06,3.7018]
[1725968711072,152.16031483,135.07,135.05,12.802]
[1725968712369,155.86191483,135.07,135.04,3.7022]
[1725968714669,155.86191483,135.07,135.05,3.7021]
[1725968717075,155.86191483,135.07,135.04,3.7023]
[1725968718573,155.86191483,135.07,135.05,3.7021]
[1725968719172,155.86191483,135.07,135.05,12.8021]
[1725968719380,152.16031483,135.07,135.05,12.8021]
[1725968719575,152.16031483,135.07,135.06,9.1]
[1725968720481,152.16031483,135.07,135.06,12.8018]
[1725968726282,3.7014,135.08,135.06,12.8018]
[1725968731588,3.7014,135.08,135.06,3.7018]
[1725968732389,3.7014,135.08,135.05,12.8019]
[1725968734485,1.3754,135.1,135.05,12.8019]
[1725968734486,3.7016,135.07,135.05,12.8019]
[1725968735285,3.7016,135.07,135.04,3.7022]
[1725968735492,9.1,135.09,135.0,2.6894]
[1725968735694,9.1,135.08,135.03,9.1]
[1725968736082,3.7023,135.05,135.03,12.8025]
[1725968737291,3.7023,135.05,135.03,3.7025]
[1725968737487,3.7023,135.05,135.03,9.1]
[1725968738995,3.7019,135.06,135.03,12.8026]
[1725968739694,3.7016,135.07,135.05,9.1]
[1725968741201,3.7016,135.07,135.05,12.8021]
[1725968744292,1.3754,135.1,135.06,9.1]
[1725968744897,5.0763,135.1,135.07,3.7014]
[1725968746100,5.0763,135.1,135.06,12.8016]
[1725968746101,3.7011,135.09,135.06,12.8016]
[1725968748504,3.7013,135.08,135.06,3.7016]
[1725968748697,3.7013,135.08,135.06,12.8016]
[1725968748899,1.3754,135.1,135.06,12.8016]
[1725968749100,3.7012,135.09,135.06,12.8016]
[1725968750109,3.7012,135.09,135.07,12.8015]
[1725968750500,3.7012,135.09,135.07,9.1]
[1725968751205,3.7012,135.09,135.06,3.7017]
[1725968751206,3.7013,135.08,135.06,12.8017]
[1725968751907,3.7013,135.08,135.06,9.1]
[1725968752899,3.7011,135.09,135.06,12.8017]
[1725968759607,3.7014,135.08,135.06,12.8017]
[1725968762816,3.7014,135.08,135.05,3.702]
[1725968763017,3.7014,135.08,135.05,12.802]
[1725968766112,3.7014,135.08,135.06,3.7018]
[1725968768221,1.3754,135.1,135.07,12.8014]
[1725968768422,1.3754,135.1,135.07,9.1]
[1725968768614,1.3754,135.1,135.08,3.7011]
[1725968768814,1.3754,135.1,135.07,9.1]
[1725968769215,5.0763,135.1,135.07,12.8014]
[1725968769722,5.0763,135.1,135.07,9.1]
[1725968771224,5.0763,135.1,135.08,3.7013]
[1725968774015,7.4166012,135.12,135.09,3.7008]
[1725968774618,3.7004,135.12,135.09,3.7008]
[1725968774923,1.3229,135.15,135.1,9.1]
[1725968775714,3.7001,135.13,135.1,12.8006]
[1725968776421,3.7001,135.13,135.11,3.7004]
[1725968777016,3.7001,135.13,135.11,12.8004]
[1725968777217,3.6997,135.14,135.12,3.7001]
[1725968777823,3.6997,135.14,135.12,12.8001]
[1725968778426,1.3229,135.15,135.13,3.6999]
[1725968778626,557.31440223,135.18,135.13,3.6999]
[1725968779031,3.6993,135.16,135.13,3.6999]
[1725968779522,3.6994,135.15,135.13,3.6999]
[1725968781434,3.699,135.17,135.12,9.1]
[1725968782030,3.6991,135.16,135.13,3.70067372]
[1725968782527,3.6991,135.16,135.13,7.40047372]
[1725968783422,3.699,135.17,135.14,3.6995]
[1725968783627,9.1,135.19,135.14,3.6995]
[1725968783827,9.1,135.19,135.14,12.7995]
[1725968784027,3.6989,135.17,135.14,12.7995]
[1725968784229,9.1,135.19,135.15,3.6992]
[1725968784831,3.6988,135.17,135.15,3.6992]
[1725968787132,3.6988,135.17,135.14,12.7995]
[1725968791232,3.6991,135.16,135.13,3.6998]
[1725968791840,3.6991,135.16,135.13,7.48875551]